[Event "Early-Titled-Tuesday-Blitz-March-26-2024"]
[Site "Chess.com"]
[Date "2024.03.26"]
[Round "6"]
[White "tetrix83"]
[Black "Misterfox120"]
[Result "1/2-1/2"]
[WhiteElo "2620"]
[BlackElo "2477"]
[TimeControl "180+1"]
[EndTime "9:06:11 PDT"]
[Termination "Game drawn - insufficient material"]

1. e4 {[%clk 0:01:28.3]} 1... c6 {[%clk 0:02:57.9]} 2. d4 {[%clk 0:01:27.9]}
2... d5 {[%clk 0:02:58.8]} 3. exd5 {[%clk 0:01:28.6]} 3... cxd5 {[%clk
0:02:58.9]} 4. Bd3 {[%clk 0:01:29]} 4... Nc6 {[%clk 0:02:59.4]} 5. c3 {[%clk
0:01:29.7]} 5... Nf6 {[%clk 0:03:00.1]} 6. h3 {[%clk 0:01:29.2]} 6... e5 {[%clk
0:02:54.8]} 7. dxe5 {[%clk 0:01:30]} 7... Nxe5 {[%clk 0:02:55.1]} 8. Nf3 {[%clk
0:01:30.9]} 8... Nxd3+ {[%clk 0:02:52.6]} 9. Qxd3 {[%clk 0:01:31.8]} 9... Bd6
{[%clk 0:02:51.1]} 10. O-O {[%clk 0:01:32]} 10... O-O {[%clk 0:02:51]} 11. Bg5
{[%clk 0:01:32.2]} 11... h6 {[%clk 0:02:50.9]} 12. Bh4 {[%clk 0:01:31.9]} 12...
g5 {[%clk 0:02:50.4]} 13. Bg3 {[%clk 0:01:32.1]} 13... Bxg3 {[%clk 0:02:50.9]}
14. fxg3 {[%clk 0:01:33]} 14... g4 {[%clk 0:02:50.7]} 15. hxg4 {[%clk
0:01:30.9]} 15... Nxg4 {[%clk 0:02:48.5]} 16. Nbd2 {[%clk 0:01:31.2]} 16... Qd6
{[%clk 0:02:43.3]} 17. Nd4 {[%clk 0:01:29.6]} 17... Bd7 {[%clk 0:02:37.5]} 18.
Rae1 {[%clk 0:01:25.9]} 18... Rae8 {[%clk 0:02:36.4]} 19. Qf3 {[%clk 0:01:15.8]}
19... Re5 {[%clk 0:02:05.3]} 20. Rxe5 {[%clk 0:01:13.3]} 20... Qxe5 {[%clk
0:02:06.2]} 21. Qf4 {[%clk 0:01:13.5]} 21... Qxf4 {[%clk 0:01:14.7]} 22. gxf4
{[%clk 0:01:10.1]} 22... Re8 {[%clk 0:01:10.3]} 23. N2f3 {[%clk 0:01:09.9]}
23... Ne3 {[%clk 0:01:06]} 24. Re1 {[%clk 0:01:09.1]} 24... Nc4 {[%clk
0:01:06.6]} 25. Rxe8+ {[%clk 0:01:07.9]} 25... Bxe8 {[%clk 0:01:07.5]} 26. b3
{[%clk 0:01:08.3]} 26... Nd6 {[%clk 0:01:04.8]} 27. Nd2 {[%clk 0:00:58.4]} 27...
Kg7 {[%clk 0:00:50.9]} 28. Kf2 {[%clk 0:00:58.5]} 28... Kf6 {[%clk 0:00:51.4]}
29. Ke3 {[%clk 0:00:58.1]} 29... Bd7 {[%clk 0:00:47.4]} 30. N2f3 {[%clk
0:00:52.2]} 30... Nf5+ {[%clk 0:00:30.5]} 31. Nxf5 {[%clk 0:00:51.5]} 31... Bxf5
{[%clk 0:00:31.4]} 32. Nd4 {[%clk 0:00:46.6]} 32... Be4 {[%clk 0:00:27.2]} 33.
g4 {[%clk 0:00:45.5]} 33... a6 {[%clk 0:00:18.3]} 34. b4 {[%clk 0:00:44.4]}
34... Kg6 {[%clk 0:00:17.8]} 35. a4 {[%clk 0:00:43.6]} 35... f5 {[%clk 0:00:18]}
36. gxf5+ {[%clk 0:00:30.9]} 36... Bxf5 {[%clk 0:00:18.9]} 37. Nb3 {[%clk
0:00:29.8]} 37... Bc2 {[%clk 0:00:14.9]} 38. Nc5 {[%clk 0:00:29.4]} 38... b6
{[%clk 0:00:14.9]} 39. Nd7 {[%clk 0:00:24.4]} 39... Bxa4 {[%clk 0:00:10.4]} 40.
Nxb6 {[%clk 0:00:24.5]} 40... Bc6 {[%clk 0:00:06.5]} 41. Nc8 {[%clk 0:00:24.1]}
41... Kf6 {[%clk 0:00:03.6]} 42. f5 {[%clk 0:00:14.2]} 42... h5 {[%clk
0:00:03.3]} 43. Kf4 {[%clk 0:00:14.3]} 43... Bd7 {[%clk 0:00:01.9]} 44. Nd6
{[%clk 0:00:13.4]} 44... Bc6 {[%clk 0:00:02.1]} 45. Nc8 {[%clk 0:00:10.2]} 45...
Bd7 {[%clk 0:00:02.5]} 46. Nb6 {[%clk 0:00:10.6]} 46... Bxf5 {[%clk 0:00:02.8]}
47. Nxd5+ {[%clk 0:00:11]} 47... Ke6 {[%clk 0:00:03.4]} 48. Nc7+ {[%clk
0:00:11]} 48... Kd6 {[%clk 0:00:03.6]} 49. Nxa6 {[%clk 0:00:07.2]} 49... Bd3
{[%clk 0:00:04.2]} 50. Nc5 {[%clk 0:00:07.2]} 50... Bc4 {[%clk 0:00:04.7]} 51.
Ke4 {[%clk 0:00:06.8]} 51... h4 {[%clk 0:00:04.5]} 52. Kd4 {[%clk 0:00:06.1]}
52... Bf1 {[%clk 0:00:02.6]} 53. Ne4+ {[%clk 0:00:06.2]} 53... Kc6 {[%clk
0:00:01.1]} 54. Nf2 {[%clk 0:00:04.4]} 54... h3 {[%clk 0:00:01.4]} 55. Ng4
{[%clk 0:00:04.7]} 55... Bg2 {[%clk 0:00:01.7]} 56. Nh2 {[%clk 0:00:04.8]} 56...
Kb6 {[%clk 0:00:02.2]} 57. c4 {[%clk 0:00:05]} 57... Kc6 {[%clk 0:00:02.8]} 58.
Ng4 {[%clk 0:00:04.9]} 58... Kb6 {[%clk 0:00:03.2]} 59. Kc3 {[%clk 0:00:05.3]}
59... Kc7 {[%clk 0:00:03.5]} 60. b5 {[%clk 0:00:05.1]} 60... Kb6 {[%clk
0:00:04]} 61. Kb4 {[%clk 0:00:05.4]} 61... Kc7 {[%clk 0:00:04.5]} 62. c5 {[%clk
0:00:05.9]} 62... Bf3 {[%clk 0:00:04.9]} 63. Nh2 {[%clk 0:00:05.6]} 63... Be2
{[%clk 0:00:05.5]} 64. Ka5 {[%clk 0:00:05.2]} 64... Kb7 {[%clk 0:00:05.9]} 65.
c6+ {[%clk 0:00:05]} 65... Kc7 {[%clk 0:00:06.5]} 66. Kb4 {[%clk 0:00:05.4]}
66... Kb6 {[%clk 0:00:07]} 67. c7 {[%clk 0:00:02.9]} 67... Kxc7 {[%clk 0:00:07]}
68. Kc5 {[%clk 0:00:03.8]} 68... Bxb5 {[%clk 0:00:07.4]} 69. Kxb5 {[%clk
0:00:03.8]} 69... Kd6 {[%clk 0:00:08.3]} 70. Kc4 {[%clk 0:00:04.7]} 70... Ke5
{[%clk 0:00:09.2]} 71. Kd3 {[%clk 0:00:05.4]} 71... Kf4 {[%clk 0:00:10]} 72. Ke2
{[%clk 0:00:05.7]} 72... Kg3 {[%clk 0:00:10.9]} 73. Nf3 {[%clk 0:00:06.2]} 73...
Kg2 {[%clk 0:00:11.8]} 74. Ke3 {[%clk 0:00:06.7]} 74... h2 {[%clk 0:00:12.7]}
75. Nxh2 {[%clk 0:00:06.9]} 1/2-1/2

[Event "Early-Titled-Tuesday-Blitz-March-26-2024"]
[Site "Chess.com"]
[Date "2024.03.26"]
[Round "6"]
[White "Sammed_Shete"]
[Black "chess123456s"]
[Result "0-1"]
[WhiteElo "2727"]
[BlackElo "2566"]
[TimeControl "180+1"]
[EndTime "9:06:20 PDT"]
[Termination "chess123456s won by resignation"]

1. Nf3 {[%clk 0:02:00.1]} 1... d5 {[%clk 0:02:58.2]} 2. d3 {[%clk 0:01:56.3]}
2... Nf6 {[%clk 0:02:57.2]} 3. Nbd2 {[%clk 0:01:56.6]} 3... Bf5 {[%clk
0:02:52.7]} 4. b4 {[%clk 0:01:49.1]} 4... e6 {[%clk 0:02:50.6]} 5. b5 {[%clk
0:01:45.4]} 5... h6 {[%clk 0:02:50.1]} 6. Bb2 {[%clk 0:01:45.2]} 6... Be7 {[%clk
0:02:50.3]} 7. g3 {[%clk 0:01:40.2]} 7... O-O {[%clk 0:02:47.8]} 8. Bg2 {[%clk
0:01:40.4]} 8... a6 {[%clk 0:02:47]} 9. a4 {[%clk 0:01:36]} 9... Nbd7 {[%clk
0:02:41.8]} 10. O-O {[%clk 0:01:35]} 10... Bh7 {[%clk 0:02:32.8]} 11. c4 {[%clk
0:01:31.1]} 11... c6 {[%clk 0:02:32.4]} 12. bxc6 {[%clk 0:01:24]} 12... bxc6
{[%clk 0:02:32.4]} 13. Nd4 {[%clk 0:01:24.9]} 13... Qc7 {[%clk 0:02:28]} 14.
cxd5 {[%clk 0:01:24.3]} 14... cxd5 {[%clk 0:02:20.7]} 15. Rc1 {[%clk 0:01:22.5]}
15... Qb6 {[%clk 0:02:20.4]} 16. Qb3 {[%clk 0:01:15.4]} 16... Qxb3 {[%clk
0:02:17.8]} 17. N2xb3 {[%clk 0:01:16.3]} 17... Rab8 {[%clk 0:02:15.3]} 18. Ba1
{[%clk 0:00:53.2]} 18... Ba3 {[%clk 0:01:59.7]} 19. Rc6 {[%clk 0:00:46.7]} 19...
e5 {[%clk 0:01:58.3]} 20. Rxa6 {[%clk 0:00:35.9]} 20... exd4 {[%clk 0:01:58]}
21. Nxd4 {[%clk 0:00:36.8]} 21... Bb2 {[%clk 0:01:54.4]} 22. Rd6 {[%clk
0:00:23.8]} 22... Nc5 {[%clk 0:01:47.8]} 23. Nc6 {[%clk 0:00:20.8]} 23... Rb7
{[%clk 0:01:38.9]} 24. Bxb2 {[%clk 0:00:19.9]} 24... Rxb2 {[%clk 0:01:39.8]} 25.
Ne7+ {[%clk 0:00:20.6]} 25... Kh8 {[%clk 0:01:39.7]} 26. Nxd5 {[%clk 0:00:20.8]}
26... Nxd5 {[%clk 0:01:38.6]} 27. Rxd5 {[%clk 0:00:21.7]} 27... Nxa4 {[%clk
0:01:38]} 28. e3 {[%clk 0:00:21.2]} 28... Nc3 {[%clk 0:01:34.5]} 29. Rd7 {[%clk
0:00:21.4]} 29... Bf5 {[%clk 0:01:24.6]} 30. Rd6 {[%clk 0:00:21.2]} 30... Be6
{[%clk 0:01:20.4]} 31. d4 {[%clk 0:00:20.9]} 31... Rfb8 {[%clk 0:01:15.6]} 32.
d5 {[%clk 0:00:19.4]} 32... Bf5 {[%clk 0:01:05.6]} 33. f3 {[%clk 0:00:19.6]}
33... Rd2 {[%clk 0:01:02.4]} 34. e4 {[%clk 0:00:19.3]} 34... Rbb2 {[%clk
0:00:59.3]} 35. Bh1 {[%clk 0:00:19.3]} 35... Bh3 {[%clk 0:00:49.6]} 36. Re1
{[%clk 0:00:19.9]} 36... Rxh2 {[%clk 0:00:17.9]} 37. Rc6 {[%clk 0:00:17.8]}
37... Rhc2 {[%clk 0:00:17.5]} 38. f4 {[%clk 0:00:15.1]} 38... Ne2+ {[%clk
0:00:15.4]} 39. Kf2 {[%clk 0:00:15.2]} 39... Nxf4+ {[%clk 0:00:08.5]} 40. Rxc2
{[%clk 0:00:14.3]} 40... Rxc2+ {[%clk 0:00:09.4]} 41. Ke3 {[%clk 0:00:15.2]}
41... Ng2+ {[%clk 0:00:08.1]} 42. Bxg2 {[%clk 0:00:15.8]} 42... Bxg2 {[%clk
0:00:09]} 43. Kd4 {[%clk 0:00:14.2]} 43... Bh3 {[%clk 0:00:09.1]} 44. Ke5 {[%clk
0:00:14.4]} 44... Kg8 {[%clk 0:00:09.4]} 45. Kd6 {[%clk 0:00:14.9]} 45... f6
{[%clk 0:00:09.2]} 46. Ke7 {[%clk 0:00:12.9]} 46... Rc7+ {[%clk 0:00:08.2]} 47.
Kd6 {[%clk 0:00:13.3]} 47... Rd7+ {[%clk 0:00:08.7]} 48. Kc6 {[%clk 0:00:13.8]}
48... Kf7 {[%clk 0:00:09.4]} 49. e5 {[%clk 0:00:13.7]} 49... fxe5 {[%clk
0:00:10.3]} 50. Rxe5 {[%clk 0:00:14]} 50... Rd8 {[%clk 0:00:10.7]} 51. d6 {[%clk
0:00:14.4]} 51... Kf6 {[%clk 0:00:07.4]} 52. Re7 {[%clk 0:00:14.1]} 52... g5
{[%clk 0:00:06.3]} 53. Re3 {[%clk 0:00:13.3]} 53... Bf5 {[%clk 0:00:05.1]} 54.
Kc7 {[%clk 0:00:12.3]} 54... Rd7+ {[%clk 0:00:04.7]} 55. Kc6 {[%clk 0:00:12.3]}
55... h5 {[%clk 0:00:04.7]} 56. Re8 {[%clk 0:00:11]} 56... Rh7 {[%clk
0:00:03.8]} 57. Rf8+ {[%clk 0:00:10.8]} 57... Rf7 {[%clk 0:00:04.5]} 58. Re8
{[%clk 0:00:09.6]} 58... Kg6 {[%clk 0:00:04.9]} 59. Rg8+ {[%clk 0:00:09.5]}
59... Rg7 {[%clk 0:00:05.1]} 60. Rh8 {[%clk 0:00:09.1]} 60... Rf7 {[%clk
0:00:04.1]} 61. Rg8+ {[%clk 0:00:08.1]} 61... Kh6 {[%clk 0:00:04.5]} 62. Rh8+
{[%clk 0:00:08.6]} 62... Rh7 {[%clk 0:00:05]} 63. Rf8 {[%clk 0:00:08.3]} 63...
Kg6 {[%clk 0:00:05]} 64. Rg8+ {[%clk 0:00:07.8]} 64... Kf6 {[%clk 0:00:05.6]}
65. Rf8+ {[%clk 0:00:07.8]} 65... Ke5 {[%clk 0:00:06.1]} 66. Re8+ {[%clk
0:00:07.8]} 66... Be6 {[%clk 0:00:06.6]} 67. Rg8 {[%clk 0:00:06.4]} 67... Bxg8
{[%clk 0:00:06.1]} 0-1

[Event "Early-Titled-Tuesday-Blitz-March-26-2024"]
[Site "Chess.com"]
[Date "2024.03.26"]
[Round "6"]
[White "Rsnr"]
[Black "Msb2"]
[Result "1-0"]
[WhiteElo "2938"]
[BlackElo "3036"]
[TimeControl "180+1"]
[EndTime "9:06:24 PDT"]
[Termination "Rsnr won by checkmate"]

1. d4 {[%clk 0:03:00.9]} 1... d5 {[%clk 0:03:00.3]} 2. c4 {[%clk 0:03:01.6]}
2... e6 {[%clk 0:03:00.9]} 3. Nf3 {[%clk 0:03:01.9]} 3... Nf6 {[%clk 0:03:01.3]}
4. g3 {[%clk 0:03:02.3]} 4... Nc6 {[%clk 0:03:01.7]} 5. Bg2 {[%clk 0:03:01]}
5... Bd6 {[%clk 0:03:02.4]} 6. O-O {[%clk 0:02:59.8]} 6... O-O {[%clk
0:03:02.7]} 7. b3 {[%clk 0:02:59.9]} 7... dxc4 {[%clk 0:03:03.1]} 8. bxc4 {[%clk
0:03:00.8]} 8... e5 {[%clk 0:03:03.7]} 9. c5 {[%clk 0:02:55.9]} 9... Be7 {[%clk
0:03:03.6]} 10. dxe5 {[%clk 0:02:56.3]} 10... Qxd1 {[%clk 0:03:04.5]} 11. Rxd1
{[%clk 0:02:57]} 11... Ne4 {[%clk 0:03:05.2]} 12. Ba3 {[%clk 0:02:57.3]} 12...
Bxc5 {[%clk 0:03:05.5]} 13. Bxc5 {[%clk 0:02:57.2]} 13... Nxc5 {[%clk
0:03:06.4]} 14. Nc3 {[%clk 0:02:55]} 14... Be6 {[%clk 0:03:04]} 15. Nd5 {[%clk
0:02:32.4]} 15... Rad8 {[%clk 0:02:54.9]} 16. Nxc7 {[%clk 0:02:13.1]} 16...
Rxd1+ {[%clk 0:02:54.9]} 17. Rxd1 {[%clk 0:02:14]} 17... Bxa2 {[%clk 0:02:55.6]}
18. Ra1 {[%clk 0:02:06.1]} 18... Bc4 {[%clk 0:02:35.3]} 19. Rc1 {[%clk 0:02:04]}
19... Ne6 {[%clk 0:02:00.4]} 20. Rxc4 {[%clk 0:01:49.6]} 20... Nxc7 {[%clk
0:02:00.5]} 21. Ng5 {[%clk 0:01:46.3]} 21... h6 {[%clk 0:01:47.5]} 22. Bxc6
{[%clk 0:01:46]} 22... bxc6 {[%clk 0:01:47]} 23. Rxc6 {[%clk 0:01:45.6]} 23...
hxg5 {[%clk 0:01:39.5]} 24. Rxc7 {[%clk 0:01:45.9]} 24... Ra8 {[%clk 0:01:40.2]}
25. Rc4 {[%clk 0:01:39.2]} 25... a5 {[%clk 0:01:39.7]} 26. Ra4 {[%clk
0:01:39.2]} 26... Kf8 {[%clk 0:01:30.8]} 27. Kg2 {[%clk 0:01:39.3]} 27... g4
{[%clk 0:01:26.3]} 28. Rxg4 {[%clk 0:01:09.5]} 28... a4 {[%clk 0:01:26.1]} 29.
Rb4 {[%clk 0:01:10]} 29... a3 {[%clk 0:01:26.5]} 30. Rb1 {[%clk 0:01:10.7]}
30... a2 {[%clk 0:01:26.8]} 31. Ra1 {[%clk 0:01:11.3]} 31... Ke7 {[%clk
0:01:26.4]} 32. f4 {[%clk 0:01:11.8]} 32... Kd7 {[%clk 0:01:04.5]} 33. Kf3
{[%clk 0:01:06.9]} 33... Kc6 {[%clk 0:01:04.6]} 34. Ke4 {[%clk 0:00:37.8]} 34...
Kc5 {[%clk 0:01:04.9]} 35. Kf5 {[%clk 0:00:37.4]} 35... Kd4 {[%clk 0:00:57.3]}
36. h4 {[%clk 0:00:21.5]} 36... Ra6 {[%clk 0:00:53.5]} 37. g4 {[%clk 0:00:13.8]}
37... Ke3 {[%clk 0:00:43]} 38. Kg5 {[%clk 0:00:13.9]} 38... Ke4 {[%clk
0:00:24.3]} 39. h5 {[%clk 0:00:13.8]} 39... Ra5 {[%clk 0:00:25]} 40. e3 {[%clk
0:00:03.4]} 40... Ra6 {[%clk 0:00:24.3]} 41. Kh4 {[%clk 0:00:01.2]} 41... Kxe3
{[%clk 0:00:24.2]} 42. Kg5 {[%clk 0:00:01.9]} 42... Ke4 {[%clk 0:00:24.7]} 43.
Re1+ {[%clk 0:00:01.7]} 43... Kd4 {[%clk 0:00:09.3]} 44. Ra1 {[%clk 0:00:02.6]}
44... Ke3 {[%clk 0:00:07]} 45. Re1+ {[%clk 0:00:02.6]} 45... Kd2 {[%clk
0:00:07.4]} 46. Ra1 {[%clk 0:00:03.5]} 46... Kd3 {[%clk 0:00:06.4]} 47. f5
{[%clk 0:00:04]} 47... Ke4 {[%clk 0:00:03.9]} 48. e6 {[%clk 0:00:04.6]} 48...
fxe6 {[%clk 0:00:04.1]} 49. fxe6 {[%clk 0:00:05.5]} 49... Rxe6 {[%clk
0:00:01.5]} 50. Rxa2 {[%clk 0:00:06]} 50... Kf3 {[%clk 0:00:02.2]} 51. Ra3+
{[%clk 0:00:06.1]} 51... Kg2 {[%clk 0:00:02.8]} 52. Ra7 {[%clk 0:00:05.5]} 52...
Kg3 {[%clk 0:00:01.9]} 53. Rxg7 {[%clk 0:00:05.3]} 53... Re5+ {[%clk 0:00:02.4]}
54. Kh6 {[%clk 0:00:05.7]} 54... Ra5 {[%clk 0:00:03.3]} 55. g5 {[%clk
0:00:06.1]} 55... Kh4 {[%clk 0:00:03.9]} 56. Rg6 {[%clk 0:00:05.8]} 56... Ra8
{[%clk 0:00:03.7]} 57. Rg7 {[%clk 0:00:06.3]} 57... Ra6+ {[%clk 0:00:04]} 58. g6
{[%clk 0:00:06.3]} 58... Ra5 {[%clk 0:00:04.6]} 59. Rb7 {[%clk 0:00:05.9]} 59...
Rxh5+ {[%clk 0:00:04.5]} 60. Kg7 {[%clk 0:00:06.6]} 60... Rc5 {[%clk 0:00:04.2]}
61. Rb1 {[%clk 0:00:05.2]} 61... Rc7+ {[%clk 0:00:03.1]} 62. Kh8 {[%clk
0:00:04.7]} 62... Rc8+ {[%clk 0:00:03.2]} 63. Kh7 {[%clk 0:00:04.8]} 63... Kg5
{[%clk 0:00:02.3]} 64. g7 {[%clk 0:00:05.3]} 64... Rc7 {[%clk 0:00:03]} 65. Rg1+
{[%clk 0:00:05.6]} 65... Kf6 {[%clk 0:00:03.4]} 66. Kh8 {[%clk 0:00:06.2]} 66...
Rc2 {[%clk 0:00:03.7]} 67. g8=Q {[%clk 0:00:06.4]} 67... Rh2+ {[%clk 0:00:04.6]}
68. Qh7 {[%clk 0:00:07]} 68... Rc2 {[%clk 0:00:05.4]} 69. Qg7+ {[%clk 0:00:07]}
69... Kf5 {[%clk 0:00:05.7]} 70. Rf1+ {[%clk 0:00:07.5]} 70... Ke4 {[%clk
0:00:06.6]} 71. Qh7+ {[%clk 0:00:07.9]} 71... Kd4 {[%clk 0:00:06.5]} 72. Qxc2
{[%clk 0:00:08.2]} 72... Ke3 {[%clk 0:00:07.4]} 73. Qf2+ {[%clk 0:00:08.5]}
73... Kd3 {[%clk 0:00:07.9]} 74. Rd1+ {[%clk 0:00:08.8]} 74... Ke4 {[%clk
0:00:08.8]} 75. Qe2+ {[%clk 0:00:09.1]} 75... Kf4 {[%clk 0:00:08.4]} 76. Rf1+
{[%clk 0:00:10]} 76... Kg5 {[%clk 0:00:09.3]} 77. Qg2+ {[%clk 0:00:10.3]} 77...
Kh6 {[%clk 0:00:10.2]} 78. Rh1# {[%clk 0:00:10.9]} 1-0

[Event "Early-Titled-Tuesday-Blitz-March-26-2024"]
[Site "Chess.com"]
[Date "2024.03.26"]
[Round "6"]
[White "Dr_Thomas_Quilter"]
[Black "IshviAggarwal"]
[Result "0-1"]
[WhiteElo "2035"]
[BlackElo "2180"]
[TimeControl "180+1"]
[EndTime "9:06:26 PDT"]
[Termination "IshviAggarwal won on time"]

1. d4 {[%clk 0:02:56.3]} 1... d5 {[%clk 0:02:59.3]} 2. Nc3 {[%clk 0:02:56]} 2...
e6 {[%clk 0:02:59.9]} 3. Bf4 {[%clk 0:02:55.7]} 3... Nf6 {[%clk 0:03:00.1]} 4.
Nb5 {[%clk 0:02:53.5]} 4... Na6 {[%clk 0:02:56.7]} 5. e3 {[%clk 0:02:53.1]} 5...
c6 {[%clk 0:02:56.9]} 6. Nc3 {[%clk 0:02:53.1]} 6... Nc7 {[%clk 0:02:56.6]} 7.
Bd3 {[%clk 0:02:52.5]} 7... Bd6 {[%clk 0:02:57.1]} 8. Nf3 {[%clk 0:02:48.4]}
8... O-O {[%clk 0:02:51.7]} 9. Ne5 {[%clk 0:02:48]} 9... c5 {[%clk 0:02:45.3]}
10. dxc5 {[%clk 0:02:47.6]} 10... Bxc5 {[%clk 0:02:44.8]} 11. Qf3 {[%clk
0:02:48.1]} 11... Nce8 {[%clk 0:02:40.1]} 12. Qh3 {[%clk 0:02:44.7]} 12... Nd6
{[%clk 0:02:34.1]} 13. O-O-O {[%clk 0:02:26.9]} 13... Bb4 {[%clk 0:02:29.3]} 14.
g4 {[%clk 0:02:07.4]} 14... Bxc3 {[%clk 0:02:27.5]} 15. bxc3 {[%clk 0:02:07.9]}
15... Nfe4 {[%clk 0:02:25.7]} 16. f3 {[%clk 0:02:04.8]} 16... f6 {[%clk
0:02:11.9]} 17. fxe4 {[%clk 0:02:01.6]} 17... fxe5 {[%clk 0:02:11.6]} 18. exd5
{[%clk 0:01:55.2]} 18... e4 {[%clk 0:02:06.1]} 19. Bxd6 {[%clk 0:01:53.5]} 19...
exd5 {[%clk 0:01:53.2]} 20. Bxf8 {[%clk 0:01:50.7]} 20... Qxf8 {[%clk
0:01:52.5]} 21. Be2 {[%clk 0:01:40.5]} 21... Be6 {[%clk 0:01:46]} 22. Rd4 {[%clk
0:01:30.8]} 22... Qa3+ {[%clk 0:01:42.5]} 23. Kd2 {[%clk 0:01:26.7]} 23... Rc8
{[%clk 0:01:41.4]} 24. Rc1 {[%clk 0:01:26.5]} 24... Qxc3+ {[%clk 0:01:37.6]} 25.
Kd1 {[%clk 0:01:27.1]} 25... Rf8 {[%clk 0:01:03.1]} 26. Qg3 {[%clk 0:01:18.9]}
26... h6 {[%clk 0:00:51.1]} 27. Rb1 {[%clk 0:00:54.9]} 27... Rf3 {[%clk
0:00:45.3]} 28. Bxf3 {[%clk 0:00:42.7]} 28... Qxe3 {[%clk 0:00:44.8]} 29. Rd2
{[%clk 0:00:35.3]} 29... exf3 {[%clk 0:00:43.8]} 30. Qf2 {[%clk 0:00:34.1]}
30... Qf4 {[%clk 0:00:38.4]} 31. Rxb7 {[%clk 0:00:26.7]} 31... Bxg4 {[%clk
0:00:34]} 32. Rd4 {[%clk 0:00:19.3]} 32... Qg5 {[%clk 0:00:22.6]} 33. Rbb4
{[%clk 0:00:13.1]} 33... Bh5 {[%clk 0:00:18.9]} 34. h4 {[%clk 0:00:11.7]} 34...
Qd8 {[%clk 0:00:08.9]} 35. Rb3 {[%clk 0:00:08.7]} 35... Qa5 {[%clk 0:00:08.7]}
36. Rd2 {[%clk 0:00:07.5]} 36... Qxa2 {[%clk 0:00:08]} 37. Ke1 {[%clk
0:00:06.8]} 37... Qa1+ {[%clk 0:00:06.3]} 38. Rd1 {[%clk 0:00:07.3]} 38... Qe5+
{[%clk 0:00:05]} 39. Kf1 {[%clk 0:00:07.3]} 39... Qe4 {[%clk 0:00:04]} 40. Re3
{[%clk 0:00:07.3]} 40... Qg4 {[%clk 0:00:03.3]} 41. Rxd5 {[%clk 0:00:03.6]}
41... Qh3+ {[%clk 0:00:03.6]} 42. Ke1 {[%clk 0:00:03.5]} 42... Qg4 {[%clk
0:00:03.2]} 43. Rd2 {[%clk 0:00:02.8]} 43... Qc4 {[%clk 0:00:02]} 44. Kd1 {[%clk
0:00:02.9]} 44... Qa4 {[%clk 0:00:01.8]} 45. Rd8+ {[%clk 0:00:02.8]} 45... Kh7
{[%clk 0:00:01.5]} 46. Rdd3 {[%clk 0:00:03.7]} 46... Qa1+ {[%clk 0:00:01.7]} 47.
Kd2 {[%clk 0:00:04.3]} 47... Qa5+ {[%clk 0:00:02.4]} 48. Rc3 {[%clk 0:00:04.2]}
48... Qa1 {[%clk 0:00:02.6]} 49. Red3 {[%clk 0:00:04.1]} 49... Qb1 {[%clk
0:00:02.5]} 50. Rc7 {[%clk 0:00:03.9]} 50... Qb4+ {[%clk 0:00:03]} 51. Rcc3
{[%clk 0:00:03.6]} 51... a5 {[%clk 0:00:03.4]} 52. Re3 {[%clk 0:00:02.8]} 52...
a4 {[%clk 0:00:03.8]} 53. Rd3 {[%clk 0:00:01.9]} 53... a3 {[%clk 0:00:04.3]} 54.
Qe3 {[%clk 0:00:02.1]} 54... a2 {[%clk 0:00:04.3]} 55. Qe1 {[%clk 0:00:02.7]}
55... Qb1 {[%clk 0:00:03.9]} 56. Ra3 {[%clk 0:00:02]} 56... Qb4+ {[%clk
0:00:02]} 57. Kd1 {[%clk 0:00:01.8]} 57... Qb1+ {[%clk 0:00:02.2]} 58. Kd2
{[%clk 0:00:02.1]} 58... Qb4+ {[%clk 0:00:02.8]} 59. Rdc3 {[%clk 0:00:02.8]}
59... Qb1 {[%clk 0:00:01.4]} 60. Qe4+ {[%clk 0:00:01.5]} 60... Bg6 {[%clk
0:00:01]} 61. Qe3 {[%clk 0:00:01.3]} 61... a1=Q {[%clk 0:00:01.4]} 62. Rxa1
{[%clk 0:00:01.7]} 62... Qxa1 {[%clk 0:00:02.3]} 63. Qxf3 {[%clk 0:00:02.4]}
63... Qa5 {[%clk 0:00:02.7]} 64. Qe3 {[%clk 0:00:02.5]} 64... Qd5+ {[%clk
0:00:03.3]} 65. Ke2 {[%clk 0:00:02.3]} 65... Qg2+ {[%clk 0:00:03.8]} 66. Kd1
{[%clk 0:00:02.1]} 66... Qf1+ {[%clk 0:00:03.3]} 67. Qe1 {[%clk 0:00:01.6]}
67... Bh5+ {[%clk 0:00:03]} 68. Kd2 {[%clk 0:00:01.7]} 68... Qf4+ {[%clk
0:00:03.5]} 0-1